BODY,BODY NAME,DATE,TRANSACTION NUMBER, AMOUNT ,SUPPLIER NAME,SUPPLIER ID,EXPENSE AREA,EXPENSE TYPE,EXPENSE CODE
http://statistics.data.gov.uk/id/local-authority/12UE,Huntingdonshire District Council,27/04/2011,81227,2650.26,King Street Housing Society,CR409301,Accommodation For Homeless,Management Charge,733
http://statistics.data.gov.uk/id/local-authority/12UE,Huntingdonshire District Council,27/04/2011,81230,2382.33,King Street Housing Society,CR409301,Accommodation For Homeless,Management Charge,733
http://statistics.data.gov.uk/id/local-authority/12UE,Huntingdonshire District Council,20/04/2011,515274,2106.00,Elephant & Castle Freehouse & Motel,CR401969,Accommodation For Homeless,Bed & Breakfast Payment,818
http://statistics.data.gov.uk/id/local-authority/12UE,Huntingdonshire District Council,14/04/2011,80517,2430.00,Elephant & Castle Freehouse & Motel,CR401969,Accommodation For Homeless,Bed & Breakfast Payment,818
http://statistics.data.gov.uk/id/local-authority/12UE,Huntingdonshire District Council,27/04/2011,81255,2376.00,Elephant & Castle Freehouse & Motel,CR401969,Accommodation For Homeless,Bed & Breakfast Payment,818
http://statistics.data.gov.uk/id/local-authority/12UE,Huntingdonshire District Council,07/04/2011,79970,1944.00,Elephant & Castle Freehouse & Motel,CR401969,Accommodation For Homeless,Bed & Breakfast Payment,818
http://statistics.data.gov.uk/id/local-authority/12UE,Huntingdonshire District Council,27/04/2011,79888,1285.20,Campbell Associates,CR407137,Air Quality,Equipment Purchases,500
http://statistics.data.gov.uk/id/local-authority/12UE,Huntingdonshire District Council,27/04/2011,79862,1501.90,Glasdon Uk Ltd,CR002827,Animal Welfare,Litter Bins,520
http://statistics.data.gov.uk/id/local-authority/12UE,Huntingdonshire District Council,20/04/2011,79607,1381.10,Glasdon Uk Ltd,CR002827,Animal Welfare,Litter Bins,520
http://statistics.data.gov.uk/id/local-authority/12UE,Huntingdonshire District Council,20/04/2011,79609,717.00,John Henry & Sons,CR031967,Animal Welfare,Litter Bins,520
http://statistics.data.gov.uk/id/local-authority/12UE,Huntingdonshire District Council,14/04/2011,514876,3672.00,North Kesteven District Council,CR477399,Building Control Other,Subcontractors,777
http://statistics.data.gov.uk/id/local-authority/12UE,Huntingdonshire District Council,27/04/2011,79852,1038.00,Beebys Limited,CR415822,Bus Stations,Building Cleaning Internal,440
http://statistics.data.gov.uk/id/local-authority/12UE,Huntingdonshire District Council,27/04/2011,81005,1176.00,Jba Construction & Management Services,CR416716,Bus Stations Capital,Consultants Other,711
http://statistics.data.gov.uk/id/local-authority/12UE,Huntingdonshire District Council,27/04/2011,80510,960.00,Action For Market Towns,CR031464,Business & Enterprise Support,Corporate Subscriptions,754
http://statistics.data.gov.uk/id/local-authority/12UE,Huntingdonshire District Council,14/04/2011,78556,1845.67,Cambridgeshire County Council,CR477465,Call Centre,Software,206
http://statistics.data.gov.uk/id/local-authority/12UE,Huntingdonshire District Council,27/04/2011,79507,780.07,Supplies Team,CR416014,Call Centre,Printers,208
http://statistics.data.gov.uk/id/local-authority/12UE,Huntingdonshire District Council,14/04/2011,79151,13.14,T N T Post Midlands Ltd,CR479965,Call Centre,Postage,231
http://statistics.data.gov.uk/id/local-authority/12UE,Huntingdonshire District Council,07/04/2011,78416,11.83,T N T Post Midlands Ltd,CR479965,Call Centre,Postage,231
http://statistics.data.gov.uk/id/local-authority/12UE,Huntingdonshire District Council,20/04/2011,79986,13.67,T N T Post Midlands Ltd,CR479965,Call Centre,Postage,231
http://statistics.data.gov.uk/id/local-authority/12UE,Huntingdonshire District Council,14/04/2011,78556,111.25,Cambridgeshire County Council,CR477465,Call Centre,Vending Materials,560
http://statistics.data.gov.uk/id/local-authority/12UE,Huntingdonshire District Council,14/04/2011,78556,32927.27,Cambridgeshire County Council,CR477465,Call Centre,I C T Services,731
http://statistics.data.gov.uk/id/local-authority/12UE,Huntingdonshire District Council,14/04/2011,78525,587.50,J Breheny Contractors Ltd,CR000314,Car Park Assets,Sitework,359
http://statistics.data.gov.uk/id/local-authority/12UE,Huntingdonshire District Council,14/04/2011,78526,587.50,J Breheny Contractors Ltd,CR000314,Car Park Assets,Sitework,359
http://statistics.data.gov.uk/id/local-authority/12UE,Huntingdonshire District Council,27/04/2011,79477,528.75,J Breheny Contractors Ltd,CR000314,Car Park Assets,Sitework,359
http://statistics.data.gov.uk/id/local-authority/12UE,Huntingdonshire District Council,20/04/2011,79406,600.00,John Henry & Sons,CR031967,Car Park Assets,Sitework,359
http://statistics.data.gov.uk/id/local-authority/12UE,Huntingdonshire District Council,27/04/2011,79868,660.90,Mhb Services,CR417269,Car Park Assets,Sitework,359
http://statistics.data.gov.uk/id/local-authority/12UE,Huntingdonshire District Council,14/04/2011,79172,3708.12,Cale Briparc Ltd,CR401137,Car Park Management,Car Park Machines,522
http://statistics.data.gov.uk/id/local-authority/12UE,Huntingdonshire District Council,27/04/2011,80978,5708.72,G4s Cashservices Uk Ltd,CR407133,Car Park Management,Cash Collection,702
http://statistics.data.gov.uk/id/local-authority/12UE,Huntingdonshire District Council,27/04/2011,80977,1104.07,G4s Cashservices Uk Ltd,CR407133,Car Park Management,Cash Collection,702
http://statistics.data.gov.uk/id/local-authority/12UE,Huntingdonshire District Council,27/04/2011,80417,11877.12,John Henry & Sons,CR031967,Car Parks Capital,Sitework,359
http://statistics.data.gov.uk/id/local-authority/12UE,Huntingdonshire District Council,27/04/2011,79885,4200.00,Oxford  Archaeology East,CR478885,Car Parks Capital,Sitework,359
http://statistics.data.gov.uk/id/local-authority/12UE,Huntingdonshire District Council,07/04/2011,79889,1388.88,Hewitsons,CR409709,Car Parks Capital,Consultants Other,711
http://statistics.data.gov.uk/id/local-authority/12UE,Huntingdonshire District Council,07/04/2011,80027,2217.33,The Stationery Office,CR401989,Central & Democratic Serv Mu,Books & Publications,250
http://statistics.data.gov.uk/id/local-authority/12UE,Huntingdonshire District Council,14/04/2011,80582,1080.20,Idox Software Ltd,CR403657,Chief Executive & C O M T,Software,206
http://statistics.data.gov.uk/id/local-authority/12UE,Huntingdonshire District Council,14/04/2011,80583,2578.30,Idox Software Ltd,CR403657,Chief Executive & C O M T,Software,206
http://statistics.data.gov.uk/id/local-authority/12UE,Huntingdonshire District Council,07/04/2011,513995,5590.20,South East Employers,CR416328,Chief Executive & C O M T,Consultants Other,711
http://statistics.data.gov.uk/id/local-authority/12UE,Huntingdonshire District Council,07/04/2011,79881,785.00,Cambridgeshire County Council,CR017440,Community Projects,Grants (Paid Out),800
http://statistics.data.gov.uk/id/local-authority/12UE,Huntingdonshire District Council,14/04/2011,80580,260.64,Hunts Post,CR040030,Community Safety,Advertising - Statutory Notice,257
http://statistics.data.gov.uk/id/local-authority/12UE,Huntingdonshire District Council,27/04/2011,79860,865.20,Your Sign Company,CR487245,Community Safety,Signs,565
http://statistics.data.gov.uk/id/local-authority/12UE,Huntingdonshire District Council,27/04/2011,79611,850.00,Sts Leisure Group,CR415607,Community Services M Us,Training - Operational,131
http://statistics.data.gov.uk/id/local-authority/12UE,Huntingdonshire District Council,27/04/2011,79642,500.00,Sts Leisure Group,CR415607,Community Services M Us,Training - Operational,131
http://statistics.data.gov.uk/id/local-authority/12UE,Huntingdonshire District Council,20/04/2011,515284,2500.00,REDACTED PERSONAL DATA,CR482295,Conservation & Listed Build,Grants (Paid Out),800
http://statistics.data.gov.uk/id/local-authority/12UE,Huntingdonshire District Council,07/04/2011,514622,1155.60,REDACTED PERSONAL DATA,CR487258,Conservation & Listed Build,Grants (Paid Out),800
http://statistics.data.gov.uk/id/local-authority/12UE,Huntingdonshire District Council,27/04/2011,515556,800.00,REDACTED PERSONAL DATA,CR102628,Conservation & Listed Build,Grants (Paid Out),800
http://statistics.data.gov.uk/id/local-authority/12UE,Huntingdonshire District Council,07/04/2011,514570,2500.00,The Church Commissioners For England,CR487246,Conservation & Listed Build,Grants (Paid Out),800
http://statistics.data.gov.uk/id/local-authority/12UE,Huntingdonshire District Council,20/04/2011,79395,20207.15,Hydrock,CR481056,Contaminated Land,Consultants Other,711
http://statistics.data.gov.uk/id/local-authority/12UE,Huntingdonshire District Council,07/04/2011,78891,1001.19,Rossendales Ltd,CR479503,Council Tax,Bailiffs,703
http://statistics.data.gov.uk/id/local-authority/12UE,Huntingdonshire District Council,14/04/2011,80364,161.93,Shell Uk Ltd,CR028192,Countryside Management,Petrol,614
http://statistics.data.gov.uk/id/local-authority/12UE,Huntingdonshire District Council,27/04/2011,81204,625.00,Wayside & Wildlife,CR409567,Countryside Management,Subcontractors,777
http://statistics.data.gov.uk/id/local-authority/12UE,Huntingdonshire District Council,20/04/2011,79381,1590.00,Magenta Coaching Solutions,CR480942,Customer Service Centres,Training - Other,136
http://statistics.data.gov.uk/id/local-authority/12UE,Huntingdonshire District Council,07/04/2011,78502,8591.52,Capita Business Services Ltd,CR410639,Customer Service Centres,Software,206
http://statistics.data.gov.uk/id/local-authority/12UE,Huntingdonshire District Council,07/04/2011,78501,5089.27,Capita Business Services Ltd,CR410639,Customer Service Centres,Software,206
http://statistics.data.gov.uk/id/local-authority/12UE,Huntingdonshire District Council,27/04/2011,515507,510.00,Bigprinting,CR416383,Customer Service Centres,Stationery,225
http://statistics.data.gov.uk/id/local-authority/12UE,Huntingdonshire District Council,27/04/2011,80980,520.88,G4s Cashservices Uk Ltd,CR407133,Customer Service Centres,Cash Collection,702
http://statistics.data.gov.uk/id/local-authority/12UE,Huntingdonshire District Council,14/04/2011,80580,412.68,Hunts Post,CR040030,Dc Application Processing,Advertising - Statutory Notice,257
http://statistics.data.gov.uk/id/local-authority/12UE,Huntingdonshire District Council,14/04/2011,79605,2544.00,Webcredible,CR479359,Development Team,Training - I T,134
http://statistics.data.gov.uk/id/local-authority/12UE,Huntingdonshire District Council,27/04/2011,80385,1302.04,Dx Network Services Ltd,CR086545,Document Centre,Postage,231
http://statistics.data.gov.uk/id/local-authority/12UE,Huntingdonshire District Council,07/04/2011,78609,4899.12,Royal Mail,CR027083,Document Centre,Postage,231
http://statistics.data.gov.uk/id/local-authority/12UE,Huntingdonshire District Council,14/04/2011,78610,1438.81,Royal Mail,CR027083,Document Centre,Postage,231
http://statistics.data.gov.uk/id/local-authority/12UE,Huntingdonshire District Council,20/04/2011,79858,1136.26,Royal Mail,CR027083,Document Centre,Postage,231
http://statistics.data.gov.uk/id/local-authority/12UE,Huntingdonshire District Council,14/04/2011,79151,818.35,T N T Post Midlands Ltd,CR479965,Document Centre,Postage,231
http://statistics.data.gov.uk/id/local-authority/12UE,Huntingdonshire District Council,07/04/2011,78416,1186.61,T N T Post Midlands Ltd,CR479965,Document Centre,Postage,231
http://statistics.data.gov.uk/id/local-authority/12UE,Huntingdonshire District Council,07/04/2011,79152,861.73,T N T Post Midlands Ltd,CR479965,Document Centre,Postage,231
http://statistics.data.gov.uk/id/local-authority/12UE,Huntingdonshire District Council,20/04/2011,79986,929.52,T N T Post Midlands Ltd,CR479965,Document Centre,Postage,231
http://statistics.data.gov.uk/id/local-authority/12UE,Huntingdonshire District Council,27/04/2011,80868,5034.00,Fingerprint,CR001165,Document Centre,Equipment Maintenance,511
http://statistics.data.gov.uk/id/local-authority/12UE,Huntingdonshire District Council,07/04/2011,513535,2926.80,Mick Cornfield,CR416841,Document Centre,Equipment Maintenance,511
http://statistics.data.gov.uk/id/local-authority/12UE,Huntingdonshire District Council,07/04/2011,78884,3011.75,Oce Uk Limited,CR409013,Document Centre,Equipment Maintenance,511
http://statistics.data.gov.uk/id/local-authority/12UE,Huntingdonshire District Council,27/04/2011,80384,1035.17,Oce Uk Limited,CR409013,Document Centre,Equipment Maintenance,511
http://statistics.data.gov.uk/id/local-authority/12UE,Huntingdonshire District Council,14/04/2011,79145,586.60,Antalis Ltd,CR479468,Document Centre,Paper,562
http://statistics.data.gov.uk/id/local-authority/12UE,Huntingdonshire District Council,07/04/2011,78612,506.40,Antalis Ltd,CR479468,Document Centre,Paper,562
http://statistics.data.gov.uk/id/local-authority/12UE,Huntingdonshire District Council,07/04/2011,78611,1048.32,West Country Paper,CR400581,Document Centre,Subcontractors,777
http://statistics.data.gov.uk/id/local-authority/12UE,Huntingdonshire District Council,14/04/2011,79170,2102.71,Staffline Group,CR416827,Domestic Refuse,Hired Staff,100
http://statistics.data.gov.uk/id/local-authority/12UE,Huntingdonshire District Council,07/04/2011,79163,1943.52,Staffline Group,CR416827,Domestic Refuse,Hired Staff,100
http://statistics.data.gov.uk/id/local-authority/12UE,Huntingdonshire District Council,20/04/2011,80418,1822.72,Staffline Group,CR416827,Domestic Refuse,Hired Staff,100
http://statistics.data.gov.uk/id/local-authority/12UE,Huntingdonshire District Council,14/04/2011,79169,1295.65,Staffline Group,CR416827,Domestic Refuse,Hired Staff,100
http://statistics.data.gov.uk/id/local-authority/12UE,Huntingdonshire District Council,27/04/2011,80416,1235.28,Staffline Group,CR416827,Domestic Refuse,Hired Staff,100
http://statistics.data.gov.uk/id/local-authority/12UE,Huntingdonshire District Council,07/04/2011,79164,1059.60,Staffline Group,CR416827,Domestic Refuse,Hired Staff,100
http://statistics.data.gov.uk/id/local-authority/12UE,Huntingdonshire District Council,20/04/2011,80420,647.84,Staffline Group,CR416827,Domestic Refuse,Hired Staff,100
http://statistics.data.gov.uk/id/local-authority/12UE,Huntingdonshire District Council,07/04/2011,79859,360.00,Gilden Training,CR481057,Domestic Refuse,Training - Operational,131
http://statistics.data.gov.uk/id/local-authority/12UE,Huntingdonshire District Council,07/04/2011,78936,4080.00,Egbert H Taylor And Co,CR004818,Domestic Refuse,Equipment Maintenance,511
http://statistics.data.gov.uk/id/local-authority/12UE,Huntingdonshire District Council,27/04/2011,80415,756.24,Burnt Tree Group,CR480897,Domestic Refuse,Vehicle Hire,607
http://statistics.data.gov.uk/id/local-authority/12UE,Huntingdonshire District Council,07/04/2011,79044,1796.40,Manvick Hire Ltd,CR410971,Domestic Refuse,Vehicle Hire,607
http://statistics.data.gov.uk/id/local-authority/12UE,Huntingdonshire District Council,27/04/2011,80414,1652.40,Manvick Hire Ltd,CR410971,Domestic Refuse,Vehicle Hire,607
http://statistics.data.gov.uk/id/local-authority/12UE,Huntingdonshire District Council,07/04/2011,78939,648.00,Phoenix Vehicle Hire Ltd,CR478661,Domestic Refuse,Vehicle Hire,607
http://statistics.data.gov.uk/id/local-authority/12UE,Huntingdonshire District Council,14/04/2011,78862,3587.53,Dennis Eagle Ltd,CR000200,Domestic Refuse,Vehicle Maintenance,619
http://statistics.data.gov.uk/id/local-authority/12UE,Huntingdonshire District Council,07/04/2011,79597,2654.08,Dennis Eagle Ltd,CR000200,Domestic Refuse,Vehicle Maintenance,619
http://statistics.data.gov.uk/id/local-authority/12UE,Huntingdonshire District Council,27/04/2011,80992,1255.97,Dennis Eagle Ltd,CR000200,Domestic Refuse,Vehicle Maintenance,619
http://statistics.data.gov.uk/id/local-authority/12UE,Huntingdonshire District Council,20/04/2011,79604,1065.76,Dennis Eagle Ltd,CR000200,Domestic Refuse,Vehicle Maintenance,619
http://statistics.data.gov.uk/id/local-authority/12UE,Huntingdonshire District Council,07/04/2011,79599,1024.31,Dennis Eagle Ltd,CR000200,Domestic Refuse,Vehicle Maintenance,619
http://statistics.data.gov.uk/id/local-authority/12UE,Huntingdonshire District Council,07/04/2011,79596,1016.86,Dennis Eagle Ltd,CR000200,Domestic Refuse,Vehicle Maintenance,619
http://statistics.data.gov.uk/id/local-authority/12UE,Huntingdonshire District Council,20/04/2011,79679,3470.40,E Rand And Sons,CR405746,Domestic Refuse,Vehicle Maintenance,619
http://statistics.data.gov.uk/id/local-authority/12UE,Huntingdonshire District Council,20/04/2011,79571,728.64,Hereward Car & Truck Components Ltd,CR487224,Domestic Refuse,Vehicle Maintenance,619
http://statistics.data.gov.uk/id/local-authority/12UE,Huntingdonshire District Council,20/04/2011,79857,2179.92,Terberg Matec Uk Ltd,CR402183,Domestic Refuse,Vehicle Maintenance,619
http://statistics.data.gov.uk/id/local-authority/12UE,Huntingdonshire District Council,20/04/2011,79677,1542.89,Terberg Matec Uk Ltd,CR402183,Domestic Refuse,Vehicle Maintenance,619
http://statistics.data.gov.uk/id/local-authority/12UE,Huntingdonshire District Council,27/04/2011,79965,2016.00,Gaunt Motorcool Services,CR404418,Domestic Refuse,Vehicle Parts,625
http://statistics.data.gov.uk/id/local-authority/12UE,Huntingdonshire District Council,14/04/2011,79061,870.96,Terberg Matec Uk Ltd,CR402183,Domestic Refuse,Vehicle Parts,625
http://statistics.data.gov.uk/id/local-authority/12UE,Huntingdonshire District Council,27/04/2011,80482,1612.90,Bandvulc Tyres Ltd,CR406810,Domestic Refuse,Tyres,630
http://statistics.data.gov.uk/id/local-authority/12UE,Huntingdonshire District Council,14/04/2011,80346,540.00,John Dodds Ltd,CR487257,Efh & Depots,Gen Building Mtce - Responsive,303
http://statistics.data.gov.uk/id/local-authority/12UE,Huntingdonshire District Council,27/04/2011,80635,816.00,Cambridge Door Services,CR415341,Efh & Depots,Gen Building Mtce - Planned,304
http://statistics.data.gov.uk/id/local-authority/12UE,Huntingdonshire District Council,20/04/2011,79178,5328.60,T Clarke East Ltd,CR477493,Efh & Depots,Gen Building Mtce - Planned,304
http://statistics.data.gov.uk/id/local-authority/12UE,Huntingdonshire District Council,20/04/2011,80492,5075.73,Swalec,CR407130,Efh & Depots,Electricity,420
http://statistics.data.gov.uk/id/local-authority/12UE,Huntingdonshire District Council,14/04/2011,80375,609.76,E-On Energy,CR416430,Efh & Depots,Gas,421
http://statistics.data.gov.uk/id/local-authority/12UE,Huntingdonshire District Council,14/04/2011,79151,347.16,T N T Post Midlands Ltd,CR479965,Eh Health & Safety,Postage,231
http://statistics.data.gov.uk/id/local-authority/12UE,Huntingdonshire District Council,20/04/2011,80030,1519.20,Shaw & Sons Limited,CR003422,Elections,Stationery,225
http://statistics.data.gov.uk/id/local-authority/12UE,Huntingdonshire District Council,27/04/2011,80031,7809.60,Victoirepress,CR404724,Elections,Stationery,225
http://statistics.data.gov.uk/id/local-authority/12UE,Huntingdonshire District Council,20/04/2011,79446,20532.59,Royal Mail,CR027083,Elections,Postage,231
http://statistics.data.gov.uk/id/local-authority/12UE,Huntingdonshire District Council,14/04/2011,79151,148.49,T N T Post Midlands Ltd,CR479965,Elections,Postage,231
http://statistics.data.gov.uk/id/local-authority/12UE,Huntingdonshire District Council,07/04/2011,79152,22.86,T N T Post Midlands Ltd,CR479965,Elections,Postage,231
http://statistics.data.gov.uk/id/local-authority/12UE,Huntingdonshire District Council,20/04/2011,79986,8.94,T N T Post Midlands Ltd,CR479965,Elections,Postage,231
http://statistics.data.gov.uk/id/local-authority/12UE,Huntingdonshire District Council,20/04/2011,79139,9001.46,Aecom,CR478307,Energy Efficiency,Consultants Other,711
http://statistics.data.gov.uk/id/local-authority/12UE,Huntingdonshire District Council,14/04/2011,80582,1080.20,Idox Software Ltd,CR403657,Engineering & Arch M Us,Software,206
http://statistics.data.gov.uk/id/local-authority/12UE,Huntingdonshire District Council,14/04/2011,80583,2578.30,Idox Software Ltd,CR403657,Engineering & Arch M Us,Software,206
http://statistics.data.gov.uk/id/local-authority/12UE,Huntingdonshire District Council,14/04/2011,80389,500.00,S K Stopher Property Maintenance Ltd,CR487262,Environment Equipment Capital,Consultants Other,711
http://statistics.data.gov.uk/id/local-authority/12UE,Huntingdonshire District Council,20/04/2011,79450,448.80,Campbell Associates,CR407137,Environmental Health M Us,Software,206
http://statistics.data.gov.uk/id/local-authority/12UE,Huntingdonshire District Council,20/04/2011,79450,30.00,Campbell Associates,CR407137,Environmental Health M Us,Equipment Purchases,500
http://statistics.data.gov.uk/id/local-authority/12UE,Huntingdonshire District Council,20/04/2011,80563,22376.35,Apollo Property Services Group,CR480335,Environmental Improvements,Building Construction,300
http://statistics.data.gov.uk/id/local-authority/12UE,Huntingdonshire District Council,14/04/2011,80636,4279.02,Mr N R J Moore,CR480972,Environmental Improvements,Building Construction,300
http://statistics.data.gov.uk/id/local-authority/12UE,Huntingdonshire District Council,27/04/2011,80631,696.00,G Ferrara Ltd,CR478949,Environmental Improvements,Sitework,359
http://statistics.data.gov.uk/id/local-authority/12UE,Huntingdonshire District Council,27/04/2011,80421,10344.20,John Henry & Sons,CR031967,Environmental Improvements,Sitework,359
http://statistics.data.gov.uk/id/local-authority/12UE,Huntingdonshire District Council,20/04/2011,80596,864.00,Jba Construction & Management Services,CR416716,Environmental Improvements,Consultants Other,711
http://statistics.data.gov.uk/id/local-authority/12UE,Huntingdonshire District Council,27/04/2011,80340,243432.12,Cambridgeshire County Council,CR006678,Estates Properties Capital,Consultants Other,711
http://statistics.data.gov.uk/id/local-authority/12UE,Huntingdonshire District Council,27/04/2011,80686,10378.08,Drivers  Jonas Deloitte,CR400573,Estates Properties Capital,Consultants Other,711
http://statistics.data.gov.uk/id/local-authority/12UE,Huntingdonshire District Council,27/04/2011,80936,6377.53,Drivers  Jonas Deloitte,CR400573,Estates Properties Capital,Consultants Other,711
http://statistics.data.gov.uk/id/local-authority/12UE,Huntingdonshire District Council,07/04/2011,78977,49560.00,Pricewaterhouse Coopers Llp,CR487210,External Audit,Audit Fees,701
http://statistics.data.gov.uk/id/local-authority/12UE,Huntingdonshire District Council,27/04/2011,80382,12453.56,T Clarke East Ltd,CR000219,Facilities Mgt,Gen Building Mtce - Responsive,303
http://statistics.data.gov.uk/id/local-authority/12UE,Huntingdonshire District Council,20/04/2011,80071,2700.00,@Uk Plc,CR480042,Financial Services,Software,206
http://statistics.data.gov.uk/id/local-authority/12UE,Huntingdonshire District Council,07/04/2011,80132,4560.00,Cipfa,CR480451,Financial Services Mus,Training - Professional,130
http://statistics.data.gov.uk/id/local-authority/12UE,Huntingdonshire District Council,14/04/2011,78903,4482.00,Auditware Systems Limited,CR40190,Financial Services Mus,Software,206
http://statistics.data.gov.uk/id/local-authority/12UE,Huntingdonshire District Council,07/04/2011,78455,1800.00,Rsm Tenon Limited,CR480303,Financial Services Mus,Software,206
http://statistics.data.gov.uk/id/local-authority/12UE,Huntingdonshire District Council,27/04/2011,80436,1860.00,Lavat,CR480410,Financial Services Mus,Consultants Other,711
http://statistics.data.gov.uk/id/local-authority/12UE,Huntingdonshire District Council,27/04/2011,80112,98.28,Days Contract Hire,CR417030,Fleet Management,Service Charges,412
http://statistics.data.gov.uk/id/local-authority/12UE,Huntingdonshire District Council,27/04/2011,80112,985.81,Days Contract Hire,CR417030,Fleet Management,Vehicle Finance Leases,602
http://statistics.data.gov.uk/id/local-authority/12UE,Huntingdonshire District Council,14/04/2011,80633,957.99,Freight Transport Association,CR003104,Fleet Management,Corporate Subscriptions,754
http://statistics.data.gov.uk/id/local-authority/12UE,Huntingdonshire District Council,14/04/2011,79151,346.90,T N T Post Midlands Ltd,CR479965,Food Safety,Postage,231
http://statistics.data.gov.uk/id/local-authority/12UE,Huntingdonshire District Council,14/04/2011,79561,61.50,Spaldings,CR405722,Grounds Maintenance (Combined),Protective Clothing & Uniforms,163
http://statistics.data.gov.uk/id/local-authority/12UE,Huntingdonshire District Council,20/04/2011,79855,3256.80,Arthur Ibbett Ltd,CR000430,Grounds Maintenance (Combined),Equipment Purchases,500
http://statistics.data.gov.uk/id/local-authority/12UE,Huntingdonshire District Council,14/04/2011,79068,86.40,Rigby Taylor Ltd,CR001345,Grounds Maintenance (Combined),Equipment Maintenance,511
http://statistics.data.gov.uk/id/local-authority/12UE,Huntingdonshire District Council,14/04/2011,79561,609.50,Spaldings,CR405722,Grounds Maintenance (Combined),Materials,550
http://statistics.data.gov.uk/id/local-authority/12UE,Huntingdonshire District Council,14/04/2011,79068,1036.80,Rigby Taylor Ltd,CR001345,Grounds Maintenance (Combined),Chemicals,551
http://statistics.data.gov.uk/id/local-authority/12UE,Huntingdonshire District Council,27/04/2011,80358,102.07,Euramka Promotions Ltd,CR001864,Grounds Maintenance (Combined),Petrol,614
http://statistics.data.gov.uk/id/local-authority/12UE,Huntingdonshire District Council,14/04/2011,80364,361.31,Shell Uk Ltd,CR028192,Grounds Maintenance (Combined),Petrol,614
http://statistics.data.gov.uk/id/local-authority/12UE,Huntingdonshire District Council,27/04/2011,80358,530.72,Euramka Promotions Ltd,CR001864,Grounds Maintenance (Combined),Diesel,615
http://statistics.data.gov.uk/id/local-authority/12UE,Huntingdonshire District Council,20/04/2011,80488,1616.87,Ernest Doe & Sons,CR000261,Grounds Maintenance (Combined),Vehicle Maintenance,619
http://statistics.data.gov.uk/id/local-authority/12UE,Huntingdonshire District Council,20/04/2011,80490,1452.15,Ernest Doe & Sons,CR000261,Grounds Maintenance (Combined),Vehicle Maintenance,619
http://statistics.data.gov.uk/id/local-authority/12UE,Huntingdonshire District Council,20/04/2011,80489,-1717.90,Ernest Doe & Sons,CR000261,Grounds Maintenance (Combined),Vehicle Maintenance,619
http://statistics.data.gov.uk/id/local-authority/12UE,Huntingdonshire District Council,20/04/2011,79417,693.00,1st Choice Recruitment,CR406132,Helpdesk,Hired Staff,100
http://statistics.data.gov.uk/id/local-authority/12UE,Huntingdonshire District Council,14/04/2011,79153,576.90,1st Choice Recruitment,CR406132,Helpdesk,Hired Staff,100
http://statistics.data.gov.uk/id/local-authority/12UE,Huntingdonshire District Council,27/04/2011,79985,567.00,1st Choice Recruitment,CR406132,Helpdesk,Hired Staff,100
http://statistics.data.gov.uk/id/local-authority/12UE,Huntingdonshire District Council,27/04/2011,80519,1090.13,Reed Employment Plc,CR416757,Helpdesk,Hired Staff,100
http://statistics.data.gov.uk/id/local-authority/12UE,Huntingdonshire District Council,14/04/2011,80495,23664.00,Northgate Arinso,CR028689,Helpdesk,Software,206
http://statistics.data.gov.uk/id/local-authority/12UE,Huntingdonshire District Council,07/04/2011,79499,1740.00,Phoenix Software Ltd,CR031918,Helpdesk,Software,206
http://statistics.data.gov.uk/id/local-authority/12UE,Huntingdonshire District Council,20/04/2011,80460,556.25,Booker Cash And Carry,CR027611,Hinchingbrooke Country Park,Catering Materials,559
http://statistics.data.gov.uk/id/local-authority/12UE,Huntingdonshire District Council,07/04/2011,78494,549.00,Collective Enterprises Ltd,CR403156,Home Improvement Agency,Software,206
http://statistics.data.gov.uk/id/local-authority/12UE,Huntingdonshire District Council,14/04/2011,514813,974.14,Bibby Factors Leicester Ltd,CR480417,Housing Management Units,Hired Staff,100
http://statistics.data.gov.uk/id/local-authority/12UE,Huntingdonshire District Council,27/04/2011,515574,974.14,Bibby Factors Leicester Ltd,CR480417,Housing Management Units,Hired Staff,100
http://statistics.data.gov.uk/id/local-authority/12UE,Huntingdonshire District Council,20/04/2011,515273,960.97,Bibby Factors Leicester Ltd,CR480417,Housing Management Units,Hired Staff,100
http://statistics.data.gov.uk/id/local-authority/12UE,Huntingdonshire District Council,07/04/2011,514581,868.82,Bibby Factors Leicester Ltd,CR480417,Housing Management Units,Hired Staff,100
http://statistics.data.gov.uk/id/local-authority/12UE,Huntingdonshire District Council,14/04/2011,80408,2496.00,Luminus Homes,CR401276,Housing Services Other,Gen Building Mtce - Responsive,303
http://statistics.data.gov.uk/id/local-authority/12UE,Huntingdonshire District Council,20/04/2011,80493,555.72,Swalec,CR407130,Housing Services Other,Electricity,420
http://statistics.data.gov.uk/id/local-authority/12UE,Huntingdonshire District Council,14/04/2011,80407,5847.01,Luminus Homes,CR401276,Housing Services Other,Management Charge,733
http://statistics.data.gov.uk/id/local-authority/12UE,Huntingdonshire District Council,07/04/2011,78429,2409.66,Accomplished,CR477676,Human Resources,Training - Management,132
http://statistics.data.gov.uk/id/local-authority/12UE,Huntingdonshire District Council,14/04/2011,79480,2383.26,Accomplished,CR477676,Human Resources,Training - Other,136
http://statistics.data.gov.uk/id/local-authority/12UE,Huntingdonshire District Council,07/04/2011,79549,2520.00,Alan Dowson Associates,CR028721,Human Resources,Training - Other,136
http://statistics.data.gov.uk/id/local-authority/12UE,Huntingdonshire District Council,07/04/2011,78432,9601.62,Safety Media Ltd,CR033676,Human Resources,Training - Other,136
http://statistics.data.gov.uk/id/local-authority/12UE,Huntingdonshire District Council,20/04/2011,79907,737.50,Young Lives,CR478556,Human Resources,Training - Other,136
http://statistics.data.gov.uk/id/local-authority/12UE,Huntingdonshire District Council,20/04/2011,80891,6853.80,Inbucon Ltd,CR400313,Human Resources,Consultants Other,711
http://statistics.data.gov.uk/id/local-authority/12UE,Huntingdonshire District Council,27/04/2011,79877,6606.86,Hinchingbrooke Healthcare Nhs,CR003003,Human Resources,Medical Fees,734
http://statistics.data.gov.uk/id/local-authority/12UE,Huntingdonshire District Council,27/04/2011,78414,5998.80,Neopost Finance Ltd,CR001423,I T Capital,Materials,550
http://statistics.data.gov.uk/id/local-authority/12UE,Huntingdonshire District Council,07/04/2011,78955,805.05,Postbox Shop Ltd,CR487197,Industrial Properties Capital,Equipment Purchases,500
http://statistics.data.gov.uk/id/local-authority/12UE,Huntingdonshire District Council,14/04/2011,80582,2488.80,Idox Software Ltd,CR403657,Information Manager,Software,206
http://statistics.data.gov.uk/id/local-authority/12UE,Huntingdonshire District Council,07/04/2011,80116,27138.00,Esri Uk,CR405125,Information Manager,Equipment Maintenance,511
http://statistics.data.gov.uk/id/local-authority/12UE,Huntingdonshire District Council,07/04/2011,79162,2832.88,Staffline Group,CR416827,Kerbside Recycling,Hired Staff,100
http://statistics.data.gov.uk/id/local-authority/12UE,Huntingdonshire District Council,20/04/2011,80419,2349.77,Staffline Group,CR416827,Kerbside Recycling,Hired Staff,100
http://statistics.data.gov.uk/id/local-authority/12UE,Huntingdonshire District Council,14/04/2011,79168,2014.87,Staffline Group,CR416827,Kerbside Recycling,Hired Staff,100
http://statistics.data.gov.uk/id/local-authority/12UE,Huntingdonshire District Council,27/04/2011,80424,823.52,Staffline Group,CR416827,Kerbside Recycling,Hired Staff,100
http://statistics.data.gov.uk/id/local-authority/12UE,Huntingdonshire District Council,27/04/2011,79968,4043.64,Dennis Eagle Ltd,CR000200,Kerbside Recycling,Vehicle Maintenance,619
http://statistics.data.gov.uk/id/local-authority/12UE,Huntingdonshire District Council,27/04/2011,80482,2365.10,Bandvulc Tyres Ltd,CR406810,Kerbside Recycling,Tyres,630
http://statistics.data.gov.uk/id/local-authority/12UE,Huntingdonshire District Council,14/04/2011,80582,11985.19,Idox Software Ltd,CR403657,Land Charges,Software,206
http://statistics.data.gov.uk/id/local-authority/12UE,Huntingdonshire District Council,27/04/2011,80879,13943.00,Cambridgeshire County Council,CR006678,Land Charges,Other Office Expenses,295
http://statistics.data.gov.uk/id/local-authority/12UE,Huntingdonshire District Council,07/04/2011,79918,1270.64,Building Services Design - Bsd,CR409263,Leisure Centres Capital,Furniture,200
http://statistics.data.gov.uk/id/local-authority/12UE,Huntingdonshire District Council,14/04/2011,80564,5219.74,Cambridge Flat Roofing,CR479717,Leisure Centres Capital,Building Construction,300
http://statistics.data.gov.uk/id/local-authority/12UE,Huntingdonshire District Council,07/04/2011,79863,56900.81,R G Carter Peterborough,CR401511,Leisure Centres Capital,Building Construction,300
http://statistics.data.gov.uk/id/local-authority/12UE,Huntingdonshire District Council,07/04/2011,79887,47586.55,R G Carter Peterborough,CR401511,Leisure Centres Capital,Building Construction,300
http://statistics.data.gov.uk/id/local-authority/12UE,Huntingdonshire District Council,20/04/2011,80693,2400.00,Chalmor Ltd,CR487202,Leisure Centres Capital,Gen Building Mtce - Responsive,303
http://statistics.data.gov.uk/id/local-authority/12UE,Huntingdonshire District Council,14/04/2011,80534,685.40,Roger Wilson Electronics,CR028041,Leisure Centres Capital,Gen Building Mtce - Responsive,303
http://statistics.data.gov.uk/id/local-authority/12UE,Huntingdonshire District Council,20/04/2011,80886,2124.00,Environmental Protection Strategies Ltd,CR413448,Leisure Centres Capital,Sitework,359
http://statistics.data.gov.uk/id/local-authority/12UE,Huntingdonshire District Council,27/04/2011,79886,5040.00,Oxford  Archaeology East,CR478885,Leisure Centres Capital,Sitework,359
http://statistics.data.gov.uk/id/local-authority/12UE,Huntingdonshire District Council,27/04/2011,80999,6000.00,Building Services Design - Bsd,CR409263,Leisure Centres Capital,Consultants Other,711
http://statistics.data.gov.uk/id/local-authority/12UE,Huntingdonshire District Council,27/04/2011,79897,840.00,Building Services Design - Bsd,CR409263,Leisure Centres Capital,Consultants Other,711
http://statistics.data.gov.uk/id/local-authority/12UE,Huntingdonshire District Council,07/04/2011,78527,641.28,Cfb Limited,CR480886,Leisure Centres Overall,Consultants Other,711
http://statistics.data.gov.uk/id/local-authority/12UE,Huntingdonshire District Council,07/04/2011,79152,76.48,T N T Post Midlands Ltd,CR479965,Leisure Development,Postage,231
http://statistics.data.gov.uk/id/local-authority/12UE,Huntingdonshire District Council,27/04/2011,80619,780.00,G Ferrara Ltd,CR478949,Leisure Services Capital,Gen Building Mtce - Responsive,303
http://statistics.data.gov.uk/id/local-authority/12UE,Huntingdonshire District Council,14/04/2011,80582,7321.98,Idox Software Ltd,CR403657,Licences,Software,206
http://statistics.data.gov.uk/id/local-authority/12UE,Huntingdonshire District Council,07/04/2011,78657,658.56,Mogo Uk,CR410378,Licences,Licence Plates,564
http://statistics.data.gov.uk/id/local-authority/12UE,Huntingdonshire District Council,07/04/2011,79183,864.00,Mo Motors,CR406493,Licences,Vehicle Inspection,618
http://statistics.data.gov.uk/id/local-authority/12UE,Huntingdonshire District Council,20/04/2011,79515,810.00,Mo Motors,CR406493,Licences,Vehicle Inspection,618
http://statistics.data.gov.uk/id/local-authority/12UE,Huntingdonshire District Council,14/04/2011,79179,702.00,Mo Motors,CR406493,Licences,Vehicle Inspection,618
http://statistics.data.gov.uk/id/local-authority/12UE,Huntingdonshire District Council,27/04/2011,79988,648.00,Mo Motors,CR406493,Licences,Vehicle Inspection,618
http://statistics.data.gov.uk/id/local-authority/12UE,Huntingdonshire District Council,27/04/2011,79862,2613.38,Glasdon Uk Ltd,CR002827,Littering,Sitework,359
http://statistics.data.gov.uk/id/local-authority/12UE,Huntingdonshire District Council,20/04/2011,79608,1468.18,John Henry & Sons,CR031967,Littering,Sitework,359
http://statistics.data.gov.uk/id/local-authority/12UE,Huntingdonshire District Council,14/04/2011,79377,4380.00,Broxap Ltd,CR415958,Littering,Litter Bins,520
http://statistics.data.gov.uk/id/local-authority/12UE,Huntingdonshire District Council,27/04/2011,79862,719.01,Glasdon Uk Ltd,CR002827,Littering,Litter Bins,520
http://statistics.data.gov.uk/id/local-authority/12UE,Huntingdonshire District Council,20/04/2011,79607,2146.40,Glasdon Uk Ltd,CR002827,Littering,Litter Bins,520
http://statistics.data.gov.uk/id/local-authority/12UE,Huntingdonshire District Council,14/04/2011,79067,660.00,Lloyds Tsb Commercial Finance Ltd,CR410928,Littering,Subcontractors,777
http://statistics.data.gov.uk/id/local-authority/12UE,Huntingdonshire District Council,27/04/2011,80463,763.20,Nabma,CR030578,Markets,Corporate Subscriptions,754
http://statistics.data.gov.uk/id/local-authority/12UE,Huntingdonshire District Council,27/04/2011,80876,13572.00,Local Government Association,CR411957,Member Allowances & Support,Corporate Subscriptions,754
http://statistics.data.gov.uk/id/local-authority/12UE,Huntingdonshire District Council,20/04/2011,80154,180.26,Arthur Ibbett Ltd,CR000430,Misc Countryside Sites,Protective Clothing & Uniforms,163
http://statistics.data.gov.uk/id/local-authority/12UE,Huntingdonshire District Council,20/04/2011,80437,780.00,Coral Design Management,CR029621,Misc Countryside Sites,Printing (External),220
http://statistics.data.gov.uk/id/local-authority/12UE,Huntingdonshire District Council,14/04/2011,80439,1507.20,Cleveland Sitesafe Limited,CR410092,Misc Countryside Sites,Gen Building Mtce - Responsive,303
http://statistics.data.gov.uk/id/local-authority/12UE,Huntingdonshire District Council,27/04/2011,80431,1470.14,Huntingdon Timber Supplies,CR415663,Misc Countryside Sites,"Fences, Walls, Gates",356
http://statistics.data.gov.uk/id/local-authority/12UE,Huntingdonshire District Council,27/04/2011,80586,511.30,Jewson,CR000455,Misc Countryside Sites,Materials,550
http://statistics.data.gov.uk/id/local-authority/12UE,Huntingdonshire District Council,14/04/2011,79416,1015.66,Reed Employment Plc,CR416757,Network Services,Hired Staff,100
http://statistics.data.gov.uk/id/local-authority/12UE,Huntingdonshire District Council,07/04/2011,79082,927.62,Reed Employment Plc,CR416757,Network Services,Hired Staff,100
http://statistics.data.gov.uk/id/local-authority/12UE,Huntingdonshire District Council,20/04/2011,79987,914.09,Reed Employment Plc,CR416757,Network Services,Hired Staff,100
http://statistics.data.gov.uk/id/local-authority/12UE,Huntingdonshire District Council,07/04/2011,78499,1530.00,Virgin Media Business,CR033120,Network Services,I T Line Rental,248
http://statistics.data.gov.uk/id/local-authority/12UE,Huntingdonshire District Council,07/04/2011,78837,576.00,Dal-Rod Uk Ltd,CR002782,Nightsoil,Subcontractors,777
http://statistics.data.gov.uk/id/local-authority/12UE,Huntingdonshire District Council,20/04/2011,79450,5142.00,Campbell Associates,CR407137,Nuisances,Software,206
http://statistics.data.gov.uk/id/local-authority/12UE,Huntingdonshire District Council,07/04/2011,78473,796.36,Playfords Ltd,CR479055,Offices Capital,Equipment Purchases,500
http://statistics.data.gov.uk/id/local-authority/12UE,Huntingdonshire District Council,07/04/2011,78834,5645.83,Campbell Rees Partnership,CR028043,Offices Capital,Consultants Other,711
http://statistics.data.gov.uk/id/local-authority/12UE,Huntingdonshire District Council,20/04/2011,79518,1003.00,Rob Gwillim,CR481176,Offices Capital,Consultants Other,711
http://statistics.data.gov.uk/id/local-authority/12UE,Huntingdonshire District Council,20/04/2011,79560,4164.00,Premier Software Solutions Ltd,CR480758,One Leisure Huntingdon,Software,206
http://statistics.data.gov.uk/id/local-authority/12UE,Huntingdonshire District Council,20/04/2011,80014,748.56,Premier Software Solutions Ltd,CR480758,One Leisure Huntingdon,Software,206
http://statistics.data.gov.uk/id/local-authority/12UE,Huntingdonshire District Council,14/04/2011,80610,600.00,Bigprinting,CR416383,One Leisure Huntingdon,Printing (External),220
http://statistics.data.gov.uk/id/local-authority/12UE,Huntingdonshire District Council,07/04/2011,78416,326.54,T N T Post Midlands Ltd,CR479965,One Leisure Huntingdon,Postage,231
http://statistics.data.gov.uk/id/local-authority/12UE,Huntingdonshire District Council,27/04/2011,80000,384.00,Rbs Invoice Finance Limited,CR403759,One Leisure Huntingdon,Advertising/Promoting Services,255
http://statistics.data.gov.uk/id/local-authority/12UE,Huntingdonshire District Council,27/04/2011,79998,726.00,Uk Point Of Sale Group Ltd,CR478991,One Leisure Huntingdon,Advertising/Promoting Services,255
http://statistics.data.gov.uk/id/local-authority/12UE,Huntingdonshire District Council,27/04/2011,80036,630.00,Chris Robinson T/A Cr Design,CR416482,One Leisure Huntingdon,Gen Building Mtce - Planned,304
http://statistics.data.gov.uk/id/local-authority/12UE,Huntingdonshire District Council,27/04/2011,80522,4746.49,Artificial Grass Maintenance Ltd,CR487264,One Leisure Huntingdon,Grounds Mtce Contractors,351
http://statistics.data.gov.uk/id/local-authority/12UE,Huntingdonshire District Council,27/04/2011,80024,5040.00,Huntingdon Flooring,CR400558,One Leisure Huntingdon,Fixtures & Fittings,379
http://statistics.data.gov.uk/id/local-authority/12UE,Huntingdonshire District Council,27/04/2011,80028,1815.60,Huntingdon Flooring,CR400558,One Leisure Huntingdon,Fixtures & Fittings,379
http://statistics.data.gov.uk/id/local-authority/12UE,Huntingdonshire District Council,27/04/2011,80026,1080.00,Huntingdon Flooring,CR400558,One Leisure Huntingdon,Fixtures & Fittings,379
http://statistics.data.gov.uk/id/local-authority/12UE,Huntingdonshire District Council,14/04/2011,80053,895.90,Air Systems A/C & Ref Ltd,CR416171,One Leisure Huntingdon,Plant & Equipment Maintenance,380
http://statistics.data.gov.uk/id/local-authority/12UE,Huntingdonshire District Council,20/04/2011,79531,634.50,Combined Energy Solutions,CR003063,One Leisure Huntingdon,Plant & Equipment Maintenance,380
http://statistics.data.gov.uk/id/local-authority/12UE,Huntingdonshire District Council,20/04/2011,80487,5100.80,Swalec,CR407130,One Leisure Huntingdon,Electricity,420
http://statistics.data.gov.uk/id/local-authority/12UE,Huntingdonshire District Council,14/04/2011,80381,3578.12,E-On Energy,CR416430,One Leisure Huntingdon,Gas,421
http://statistics.data.gov.uk/id/local-authority/12UE,Huntingdonshire District Council,14/04/2011,80377,972.41,E-On Energy,CR416430,One Leisure Huntingdon,Gas,421
http://statistics.data.gov.uk/id/local-authority/12UE,Huntingdonshire District Council,20/04/2011,80521,2054.44,Anglian Water Payment Centre,CR409323,One Leisure Huntingdon,Sewerage,433
http://statistics.data.gov.uk/id/local-authority/12UE,Huntingdonshire District Council,27/04/2011,80067,600.00,Smc Ltd T/A Chubb Emergency Repsonse,CR479782,One Leisure Huntingdon,Security,450
http://statistics.data.gov.uk/id/local-authority/12UE,Huntingdonshire District Council,27/04/2011,80069,600.00,Smc Ltd T/A Chubb Emergency Repsonse,CR479782,One Leisure Huntingdon,Security,450
http://statistics.data.gov.uk/id/local-authority/12UE,Huntingdonshire District Council,20/04/2011,79529,688.80,Roger Wilson Electronics,CR028041,One Leisure Huntingdon,Equipment Purchases,500
http://statistics.data.gov.uk/id/local-authority/12UE,Huntingdonshire District Council,20/04/2011,80113,2044.50,Gladstone Mrm,CR405717,One Leisure Huntingdon,Materials,550
http://statistics.data.gov.uk/id/local-authority/12UE,Huntingdonshire District Council,20/04/2011,79526,543.82,Brenntag Uk Ltd,CR015017,One Leisure Huntingdon,Chemicals,551
http://statistics.data.gov.uk/id/local-authority/12UE,Huntingdonshire District Council,07/04/2011,79021,1049.22,Glaxosmithkline,CR010424,One Leisure Huntingdon,Vending Materials,560
http://statistics.data.gov.uk/id/local-authority/12UE,Huntingdonshire District Council,27/04/2011,80980,297.62,G4s Cashservices Uk Ltd,CR407133,One Leisure Huntingdon,Cash Collection,702
http://statistics.data.gov.uk/id/local-authority/12UE,Huntingdonshire District Council,14/04/2011,80703,5200.55,Performing Right Society,CR033495,One Leisure Huntingdon,Licences,730
http://statistics.data.gov.uk/id/local-authority/12UE,Huntingdonshire District Council,07/04/2011,79521,1466.40,Ecocleen Services Limited,CR406985,One Leisure Huntingdon,Subcontractors,777
http://statistics.data.gov.uk/id/local-authority/12UE,Huntingdonshire District Council,27/04/2011,80702,10421.24,Gladstone Mrm,CR405717,One Leisure Ramsey,Other I T Hardware,203
http://statistics.data.gov.uk/id/local-authority/12UE,Huntingdonshire District Council,14/04/2011,80610,444.00,Bigprinting,CR416383,One Leisure Ramsey,Printing (External),220
http://statistics.data.gov.uk/id/local-authority/12UE,Huntingdonshire District Council,07/04/2011,78416,144.10,T N T Post Midlands Ltd,CR479965,One Leisure Ramsey,Postage,231
http://statistics.data.gov.uk/id/local-authority/12UE,Huntingdonshire District Council,14/04/2011,80535,840.00,Fenland District Council,CR017207,One Leisure Ramsey,Advertising/Promoting Services,255
http://statistics.data.gov.uk/id/local-authority/12UE,Huntingdonshire District Council,07/04/2011,79125,520.52,Roger Wilson Electronics,CR028041,One Leisure Ramsey,Gen Building Mtce - Responsive,303
http://statistics.data.gov.uk/id/local-authority/12UE,Huntingdonshire District Council,14/04/2011,80497,960.95,Ecocleen Services Limited,CR406985,One Leisure Ramsey,Gen Building Mtce - Planned,304
http://statistics.data.gov.uk/id/local-authority/12UE,Huntingdonshire District Council,27/04/2011,80983,2970.58,Swalec,CR407130,One Leisure Ramsey,Electricity,420
http://statistics.data.gov.uk/id/local-authority/12UE,Huntingdonshire District Council,14/04/2011,80373,1691.44,E-On Energy,CR416430,One Leisure Ramsey,Gas,421
http://statistics.data.gov.uk/id/local-authority/12UE,Huntingdonshire District Council,27/04/2011,80500,85.56,J P Lennard Ltd,CR028595,One Leisure Ramsey,Cleaning Materials,443
http://statistics.data.gov.uk/id/local-authority/12UE,Huntingdonshire District Council,27/04/2011,80500,530.40,J P Lennard Ltd,CR028595,One Leisure Ramsey,Sports Equipment,524
http://statistics.data.gov.uk/id/local-authority/12UE,Huntingdonshire District Council,20/04/2011,80113,1022.24,Gladstone Mrm,CR405717,One Leisure Ramsey,Materials,550
http://statistics.data.gov.uk/id/local-authority/12UE,Huntingdonshire District Council,20/04/2011,80503,575.67,Booker Cash And Carry,CR027611,One Leisure Ramsey,Vending Materials,560
http://statistics.data.gov.uk/id/local-authority/12UE,Huntingdonshire District Council,27/04/2011,80980,74.41,G4s Cashservices Uk Ltd,CR407133,One Leisure Ramsey,Cash Collection,702
http://statistics.data.gov.uk/id/local-authority/12UE,Huntingdonshire District Council,14/04/2011,80703,1919.86,Performing Right Society,CR033495,One Leisure Ramsey,Licences,730
http://statistics.data.gov.uk/id/local-authority/12UE,Huntingdonshire District Council,27/04/2011,80624,3000.00,Geese Theatre Company,CR487276,One Leisure Sawtry,Training - Operational,131
http://statistics.data.gov.uk/id/local-authority/12UE,Huntingdonshire District Council,27/04/2011,80702,10421.25,Gladstone Mrm,CR405717,One Leisure Sawtry,Other I T Hardware,203
http://statistics.data.gov.uk/id/local-authority/12UE,Huntingdonshire District Council,07/04/2011,78416,122.75,T N T Post Midlands Ltd,CR479965,One Leisure Sawtry,Postage,231
http://statistics.data.gov.uk/id/local-authority/12UE,Huntingdonshire District Council,14/04/2011,80378,2343.48,E-On Energy,CR416430,One Leisure Sawtry,Gas,421
http://statistics.data.gov.uk/id/local-authority/12UE,Huntingdonshire District Council,07/04/2011,78387,681.60,Activ Security,CR409710,One Leisure Sawtry,Security,450
http://statistics.data.gov.uk/id/local-authority/12UE,Huntingdonshire District Council,07/04/2011,78608,576.00,Roger Wilson Electronics,CR028041,One Leisure Sawtry,Equipment Purchases,500
http://statistics.data.gov.uk/id/local-authority/12UE,Huntingdonshire District Council,20/04/2011,80113,1022.26,Gladstone Mrm,CR405717,One Leisure Sawtry,Materials,550
http://statistics.data.gov.uk/id/local-authority/12UE,Huntingdonshire District Council,27/04/2011,80980,74.41,G4s Cashservices Uk Ltd,CR407133,One Leisure Sawtry,Cash Collection,702
http://statistics.data.gov.uk/id/local-authority/12UE,Huntingdonshire District Council,14/04/2011,80703,2513.45,Performing Right Society,CR033495,One Leisure Sawtry,Licences,730
http://statistics.data.gov.uk/id/local-authority/12UE,Huntingdonshire District Council,14/04/2011,79938,799.20,Lloyds Tsb Commercial Finance Ltd,CR410928,One Leisure St Ives,Hired Staff,100
http://statistics.data.gov.uk/id/local-authority/12UE,Huntingdonshire District Council,20/04/2011,79921,1646.89,Gladstone Mrm,CR405717,One Leisure St Ives,Software,206
http://statistics.data.gov.uk/id/local-authority/12UE,Huntingdonshire District Council,14/04/2011,80610,600.00,Bigprinting,CR416383,One Leisure St Ives,Printing (External),220
http://statistics.data.gov.uk/id/local-authority/12UE,Huntingdonshire District Council,07/04/2011,78416,315.74,T N T Post Midlands Ltd,CR479965,One Leisure St Ives,Postage,231
http://statistics.data.gov.uk/id/local-authority/12UE,Huntingdonshire District Council,27/04/2011,80000,384.00,Rbs Invoice Finance Limited,CR403759,One Leisure St Ives,Advertising/Promoting Services,255
http://statistics.data.gov.uk/id/local-authority/12UE,Huntingdonshire District Council,27/04/2011,79998,726.00,Uk Point Of Sale Group Ltd,CR478991,One Leisure St Ives,Advertising/Promoting Services,255
http://statistics.data.gov.uk/id/local-authority/12UE,Huntingdonshire District Council,27/04/2011,80536,756.00,Genesis  Lifts Ltd,CR478241,One Leisure St Ives,Gen Building Mtce - Responsive,303
http://statistics.data.gov.uk/id/local-authority/12UE,Huntingdonshire District Council,14/04/2011,80534,55.20,Roger Wilson Electronics,CR028041,One Leisure St Ives,Gen Building Mtce - Responsive,303
http://statistics.data.gov.uk/id/local-authority/12UE,Huntingdonshire District Council,14/04/2011,80532,756.60,Stuart Lighting Ltd,CR033200,One Leisure St Ives,Gen Building Mtce - Responsive,303
http://statistics.data.gov.uk/id/local-authority/12UE,Huntingdonshire District Council,14/04/2011,78985,1637.47,T Clarke East Ltd,CR000219,One Leisure St Ives,Gen Building Mtce - Responsive,303
http://statistics.data.gov.uk/id/local-authority/12UE,Huntingdonshire District Council,27/04/2011,80432,4871.03,John Henry & Sons,CR031967,One Leisure St Ives,Sitework,359
http://statistics.data.gov.uk/id/local-authority/12UE,Huntingdonshire District Council,07/04/2011,78592,1140.00,Siemens Plc,CR407224,One Leisure St Ives,Plant & Equipment Maintenance,380
http://statistics.data.gov.uk/id/local-authority/12UE,Huntingdonshire District Council,20/04/2011,80485,8743.56,Swalec,CR407130,One Leisure St Ives,Electricity,420
http://statistics.data.gov.uk/id/local-authority/12UE,Huntingdonshire District Council,20/04/2011,80484,2825.47,Swalec,CR407130,One Leisure St Ives,Electricity,420
http://statistics.data.gov.uk/id/local-authority/12UE,Huntingdonshire District Council,14/04/2011,80372,3841.10,E-On Energy,CR416430,One Leisure St Ives,Gas,421
http://statistics.data.gov.uk/id/local-authority/12UE,Huntingdonshire District Council,14/04/2011,80376,868.37,E-On Energy,CR416430,One Leisure St Ives,Gas,421
http://statistics.data.gov.uk/id/local-authority/12UE,Huntingdonshire District Council,07/04/2011,80108,43.80,Booker Cash And Carry,CR027611,One Leisure St Ives,Cleaning Materials,443
http://statistics.data.gov.uk/id/local-authority/12UE,Huntingdonshire District Council,27/04/2011,81162,4824.73,Technogym Uk Ltd,CR033037,One Leisure St Ives,Equipment Maintenance,511
http://statistics.data.gov.uk/id/local-authority/12UE,Huntingdonshire District Council,14/04/2011,78635,2814.00,Airquee Ltd,CR416900,One Leisure St Ives,Sports Equipment,524
http://statistics.data.gov.uk/id/local-authority/12UE,Huntingdonshire District Council,07/04/2011,80108,180.87,Booker Cash And Carry,CR027611,One Leisure St Ives,Materials,550
http://statistics.data.gov.uk/id/local-authority/12UE,Huntingdonshire District Council,20/04/2011,80113,2044.50,Gladstone Mrm,CR405717,One Leisure St Ives,Materials,550
http://statistics.data.gov.uk/id/local-authority/12UE,Huntingdonshire District Council,14/04/2011,79149,1235.13,Brenntag Uk Ltd,CR015017,One Leisure St Ives,Chemicals,551
http://statistics.data.gov.uk/id/local-authority/12UE,Huntingdonshire District Council,07/04/2011,80108,3016.88,Booker Cash And Carry,CR027611,One Leisure St Ives,Bar Provisions,558
http://statistics.data.gov.uk/id/local-authority/12UE,Huntingdonshire District Council,14/04/2011,80093,894.00,Booker Cash And Carry,CR027611,One Leisure St Ives,Bar Provisions,558
http://statistics.data.gov.uk/id/local-authority/12UE,Huntingdonshire District Council,14/04/2011,80091,890.26,Booker Cash And Carry,CR027611,One Leisure St Ives,Bar Provisions,558
http://statistics.data.gov.uk/id/local-authority/12UE,Huntingdonshire District Council,07/04/2011,80103,1512.02,Heineken Uk Ltd,CR032678,One Leisure St Ives,Bar Provisions,558
http://statistics.data.gov.uk/id/local-authority/12UE,Huntingdonshire District Council,27/04/2011,80980,223.22,G4s Cashservices Uk Ltd,CR407133,One Leisure St Ives,Cash Collection,702
http://statistics.data.gov.uk/id/local-authority/12UE,Huntingdonshire District Council,20/04/2011,80678,699.00,Noda Operatic & Dramatic Association,CR405566,One Leisure St Ives,Licences,730
http://statistics.data.gov.uk/id/local-authority/12UE,Huntingdonshire District Council,14/04/2011,80703,4276.01,Performing Right Society,CR033495,One Leisure St Ives,Licences,730
http://statistics.data.gov.uk/id/local-authority/12UE,Huntingdonshire District Council,14/04/2011,79429,517.20,Sky Business,CR033259,One Leisure St Ives,Entertainments Inc Cable Tv,744
http://statistics.data.gov.uk/id/local-authority/12UE,Huntingdonshire District Council,27/04/2011,80945,2444.53,Starlite Roadshow,CR024127,One Leisure St Ives,Entertainments Inc Cable Tv,744
http://statistics.data.gov.uk/id/local-authority/12UE,Huntingdonshire District Council,27/04/2011,80544,676.50,Biffa Waste Services Ltd,CR000376,One Leisure St Ives,Waste Disposal,763
http://statistics.data.gov.uk/id/local-authority/12UE,Huntingdonshire District Council,07/04/2011,78581,594.00,Craftsman Quality Lockers Ltd,CR410022,One Leisure St Neots,Furniture,200
http://statistics.data.gov.uk/id/local-authority/12UE,Huntingdonshire District Council,27/04/2011,80701,10481.40,Gladstone Mrm,CR405717,One Leisure St Neots,Other I T Hardware,203
http://statistics.data.gov.uk/id/local-authority/12UE,Huntingdonshire District Council,07/04/2011,78416,357.18,T N T Post Midlands Ltd,CR479965,One Leisure St Neots,Postage,231
http://statistics.data.gov.uk/id/local-authority/12UE,Huntingdonshire District Council,20/04/2011,79979,1538.65,Burwell Mechanical Services Ltd,CR487234,One Leisure St Neots,Gen Building Mtce - Responsive,303
http://statistics.data.gov.uk/id/local-authority/12UE,Huntingdonshire District Council,20/04/2011,79978,1038.00,Burwell Mechanical Services Ltd,CR487234,One Leisure St Neots,Gen Building Mtce - Responsive,303
http://statistics.data.gov.uk/id/local-authority/12UE,Huntingdonshire District Council,27/04/2011,80685,1049.29,P J Services Ltd,CR404623,One Leisure St Neots,Gen Building Mtce - Responsive,303
http://statistics.data.gov.uk/id/local-authority/12UE,Huntingdonshire District Council,27/04/2011,80691,10117.20,R S Air Conditioning Ltd,CR478470,One Leisure St Neots,Gen Building Mtce - Responsive,303
http://statistics.data.gov.uk/id/local-authority/12UE,Huntingdonshire District Council,27/04/2011,79975,691.20,Pool Solutions Ltd,CR412070,One Leisure St Neots,Plant & Equipment Maintenance,380
http://statistics.data.gov.uk/id/local-authority/12UE,Huntingdonshire District Council,20/04/2011,80483,8253.96,Swalec,CR407130,One Leisure St Neots,Electricity,420
http://statistics.data.gov.uk/id/local-authority/12UE,Huntingdonshire District Council,14/04/2011,80380,3229.31,E-On Energy,CR416430,One Leisure St Neots,Gas,421
http://statistics.data.gov.uk/id/local-authority/12UE,Huntingdonshire District Council,14/04/2011,80379,514.64,E-On Energy,CR416430,One Leisure St Neots,Gas,421
http://statistics.data.gov.uk/id/local-authority/12UE,Huntingdonshire District Council,14/04/2011,80676,882.94,Anglian Water,CR000071,One Leisure St Neots,Water,432
http://statistics.data.gov.uk/id/local-authority/12UE,Huntingdonshire District Council,20/04/2011,80113,2044.50,Gladstone Mrm,CR405717,One Leisure St Neots,Materials,550
http://statistics.data.gov.uk/id/local-authority/12UE,Huntingdonshire District Council,20/04/2011,79638,660.00,Brenntag Uk Ltd,CR015017,One Leisure St Neots,Chemicals,551
http://statistics.data.gov.uk/id/local-authority/12UE,Huntingdonshire District Council,07/04/2011,78575,840.20,Snackline Direct Ltd,CR478090,One Leisure St Neots,Vending Materials,560
http://statistics.data.gov.uk/id/local-authority/12UE,Huntingdonshire District Council,27/04/2011,80980,446.44,G4s Cashservices Uk Ltd,CR407133,One Leisure St Neots,Cash Collection,702
http://statistics.data.gov.uk/id/local-authority/12UE,Huntingdonshire District Council,14/04/2011,80703,2953.33,Performing Right Society,CR033495,One Leisure St Neots,Licences,730
http://statistics.data.gov.uk/id/local-authority/12UE,Huntingdonshire District Council,14/04/2011,80582,8641.66,Idox Software Ltd,CR403657,Operations Mgt Units,Software,206
http://statistics.data.gov.uk/id/local-authority/12UE,Huntingdonshire District Council,14/04/2011,80583,2578.30,Idox Software Ltd,CR403657,Operations Mgt Units,Software,206
http://statistics.data.gov.uk/id/local-authority/12UE,Huntingdonshire District Council,07/04/2011,79152,141.65,T N T Post Midlands Ltd,CR479965,Operations Mgt Units,Postage,231
http://statistics.data.gov.uk/id/local-authority/12UE,Huntingdonshire District Council,07/04/2011,79673,559.10,Vodafone Limited,CR029120,Operations Mgt Units,Mobile Telephones & Radios,241
http://statistics.data.gov.uk/id/local-authority/12UE,Huntingdonshire District Council,14/04/2011,79684,1200.00,Tecalemit Garage Equipment Co Ltd,CR477683,Operations Mgt Units,Equipment Maintenance,511
http://statistics.data.gov.uk/id/local-authority/12UE,Huntingdonshire District Council,20/04/2011,79576,836.40,Freedom Lubricants Ltd,CR411569,Operations Mgt Units,Materials,550
http://statistics.data.gov.uk/id/local-authority/12UE,Huntingdonshire District Council,20/04/2011,79405,1860.00,John Henry & Sons,CR031967,Parks & Open Spaces,Sitework,359
http://statistics.data.gov.uk/id/local-authority/12UE,Huntingdonshire District Council,14/04/2011,78942,1102.20,Just Marketings,CR481191,Parks Equipment Capital,Playground Equipment,360
http://statistics.data.gov.uk/id/local-authority/12UE,Huntingdonshire District Council,20/04/2011,78854,1267.31,Streetmasters Products,CR410852,Parks Equipment Capital,Litter Bins,520
http://statistics.data.gov.uk/id/local-authority/12UE,Huntingdonshire District Council,27/04/2011,80146,1500.00,Playfords Ltd,CR479055,Pathfinder House Site,Gen Building Mtce - Responsive,303
http://statistics.data.gov.uk/id/local-authority/12UE,Huntingdonshire District Council,07/04/2011,78470,600.00,Playfords Ltd,CR479055,Pathfinder House Site,Gen Building Mtce - Responsive,303
http://statistics.data.gov.uk/id/local-authority/12UE,Huntingdonshire District Council,07/04/2011,78474,548.40,Playfords Ltd,CR479055,Pathfinder House Site,Gen Building Mtce - Responsive,303
http://statistics.data.gov.uk/id/local-authority/12UE,Huntingdonshire District Council,27/04/2011,80144,510.00,Playfords Ltd,CR479055,Pathfinder House Site,Gen Building Mtce - Responsive,303
http://statistics.data.gov.uk/id/local-authority/12UE,Huntingdonshire District Council,14/04/2011,80471,3663.00,Hygiene Solutions,CR477443,Pathfinder House Site,Gen Building Mtce - Planned,304
http://statistics.data.gov.uk/id/local-authority/12UE,Huntingdonshire District Council,07/04/2011,78471,600.00,Playfords Ltd,CR479055,Pathfinder House Site,Gen Building Mtce - Planned,304
http://statistics.data.gov.uk/id/local-authority/12UE,Huntingdonshire District Council,20/04/2011,79869,2676.00,Britannia Fire & Security Ltd,CR410090,Pathfinder House Site,Plant & Equipment Maintenance,380
http://statistics.data.gov.uk/id/local-authority/12UE,Huntingdonshire District Council,20/04/2011,80486,10709.71,Swalec,CR407130,Pathfinder House Site,Electricity,420
http://statistics.data.gov.uk/id/local-authority/12UE,Huntingdonshire District Council,20/04/2011,80491,2206.50,Swalec,CR407130,Pathfinder House Site,Gas,421
http://statistics.data.gov.uk/id/local-authority/12UE,Huntingdonshire District Council,14/04/2011,79902,1981.69,Ecocleen Services Limited,CR406985,Pathfinder House Site,Building Cleaning Internal,440
http://statistics.data.gov.uk/id/local-authority/12UE,Huntingdonshire District Council,07/04/2011,79948,662.40,Ecocleen Services Limited,CR406985,Pathfinder House Site,Building Cleaning Internal,440
http://statistics.data.gov.uk/id/local-authority/12UE,Huntingdonshire District Council,14/04/2011,80367,655.20,Flora Tec Ltd,CR028191,Pathfinder House Site,Equipment Cleaning,512
http://statistics.data.gov.uk/id/local-authority/12UE,Huntingdonshire District Council,07/04/2011,79141,606.48,B. S. Graves Electrical Ltd,CR000363,Pavillions,Gen Building Mtce - Responsive,303
http://statistics.data.gov.uk/id/local-authority/12UE,Huntingdonshire District Council,14/04/2011,80632,1500.00,G Ferrara Ltd,CR478949,Pavillions,Gen Building Mtce - Responsive,303
http://statistics.data.gov.uk/id/local-authority/12UE,Huntingdonshire District Council,27/04/2011,80339,556.01,George Alan,CR403103,Paxton Pits,Protective Clothing & Uniforms,163
http://statistics.data.gov.uk/id/local-authority/12UE,Huntingdonshire District Council,27/04/2011,80441,898.60,Huntingdon Timber Supplies,CR415663,Paxton Pits,"Fences, Walls, Gates",356
http://statistics.data.gov.uk/id/local-authority/12UE,Huntingdonshire District Council,20/04/2011,80154,510.96,Arthur Ibbett Ltd,CR000430,Paxton Pits,Equipment Purchases,500
http://statistics.data.gov.uk/id/local-authority/12UE,Huntingdonshire District Council,20/04/2011,80154,109.28,Arthur Ibbett Ltd,CR000430,Paxton Pits,Materials,550
http://statistics.data.gov.uk/id/local-authority/12UE,Huntingdonshire District Council,27/04/2011,80151,1440.00,Coral Design Management,CR029621,Paxton Pits,Signs,565
http://statistics.data.gov.uk/id/local-authority/12UE,Huntingdonshire District Council,14/04/2011,80364,96.17,Shell Uk Ltd,CR028192,Paxton Pits,Petrol,614
http://statistics.data.gov.uk/id/local-authority/12UE,Huntingdonshire District Council,20/04/2011,514357,2625.00,Anglia Ruskin Enterprises Ltd,CR032764,People Performance&Partner Mu,Training - Professional,130
http://statistics.data.gov.uk/id/local-authority/12UE,Huntingdonshire District Council,27/04/2011,80359,852.00,Northgate Hr Limited,CR416464,People Performance&Partner Mu,Training - I T,134
http://statistics.data.gov.uk/id/local-authority/12UE,Huntingdonshire District Council,14/04/2011,80347,796.23,Wolters Kluwer (Uk) Ltd,CR416692,People Performance&Partner Mu,Consultants Other,711
http://statistics.data.gov.uk/id/local-authority/12UE,Huntingdonshire District Council,14/04/2011,80582,35387.59,Idox Software Ltd,CR403657,Planning M U'S,Software,206
http://statistics.data.gov.uk/id/local-authority/12UE,Huntingdonshire District Council,27/04/2011,80348,4349.95,Automotive Leasing,CR406882,Planning M U'S,Vehicle Operating Lease,601
http://statistics.data.gov.uk/id/local-authority/12UE,Huntingdonshire District Council,27/04/2011,79959,680.40,Bsi,CR40082,Planning M U'S,Corporate Subscriptions,754
http://statistics.data.gov.uk/id/local-authority/12UE,Huntingdonshire District Council,20/04/2011,80933,1296.00,Haymarket Business Publications Ltd,CR417029,Planning M U'S,Corporate Subscriptions,754
http://statistics.data.gov.uk/id/local-authority/12UE,Huntingdonshire District Council,20/04/2011,515259,6715.00,Cambridgeshire County Council,CR006678,Project Contributions,Signs Erecting & Removal,361
http://statistics.data.gov.uk/id/local-authority/12UE,Huntingdonshire District Council,20/04/2011,515259,3500.00,Cambridgeshire County Council,CR006678,Project Contributions,Subcontractors,777
http://statistics.data.gov.uk/id/local-authority/12UE,Huntingdonshire District Council,07/04/2011,514013,2000.00,Cambridgeshire County Council,CR006678,Project Contributions,Subcontractors,777
http://statistics.data.gov.uk/id/local-authority/12UE,Huntingdonshire District Council,07/04/2011,78600,2952.00,Promain  Uk Ltd,CR082922,Property Development And Mgt,Gen Building Mtce - Responsive,303
http://statistics.data.gov.uk/id/local-authority/12UE,Huntingdonshire District Council,27/04/2011,80468,702.00,Promain  Uk Ltd,CR082922,Property Development And Mgt,Gen Building Mtce - Responsive,303
http://statistics.data.gov.uk/id/local-authority/12UE,Huntingdonshire District Council,07/04/2011,78597,678.00,Promain  Uk Ltd,CR082922,Property Development And Mgt,Gen Building Mtce - Responsive,303
http://statistics.data.gov.uk/id/local-authority/12UE,Huntingdonshire District Council,07/04/2011,78618,678.00,Promain  Uk Ltd,CR082922,Property Development And Mgt,Gen Building Mtce - Responsive,303
http://statistics.data.gov.uk/id/local-authority/12UE,Huntingdonshire District Council,27/04/2011,80107,672.00,Warboys Services Ltd,CR000841,Property Development And Mgt,Gen Building Mtce - Planned,304
http://statistics.data.gov.uk/id/local-authority/12UE,Huntingdonshire District Council,14/04/2011,79469,8218.80,Rocket Software Uk Ltd,CR411171,Public Accountability,Software,206
http://statistics.data.gov.uk/id/local-authority/12UE,Huntingdonshire District Council,20/04/2011,79446,240.73,Royal Mail,CR027083,Public Accountability,Postage,231
http://statistics.data.gov.uk/id/local-authority/12UE,Huntingdonshire District Council,14/04/2011,78889,5857.90,Royal Mail,CR027083,Public Accountability,Postage,231
http://statistics.data.gov.uk/id/local-authority/12UE,Huntingdonshire District Council,14/04/2011,79898,537.32,Ecocleen Services Limited,CR406985,Public Conveniences,Gen Building Mtce - Responsive,303
http://statistics.data.gov.uk/id/local-authority/12UE,Huntingdonshire District Council,14/04/2011,80630,768.00,G Ferrara Ltd,CR478949,Public Conveniences,Gen Building Mtce - Responsive,303
http://statistics.data.gov.uk/id/local-authority/12UE,Huntingdonshire District Council,20/04/2011,80472,684.49,Swalec,CR407130,Public Conveniences,Electricity,420
http://statistics.data.gov.uk/id/local-authority/12UE,Huntingdonshire District Council,07/04/2011,79422,666.87,Swalec,CR407130,Public Conveniences,Electricity,420
http://statistics.data.gov.uk/id/local-authority/12UE,Huntingdonshire District Council,07/04/2011,79949,552.87,Swalec,CR407130,Public Conveniences,Electricity,420
http://statistics.data.gov.uk/id/local-authority/12UE,Huntingdonshire District Council,14/04/2011,79899,658.10,Ecocleen Services Limited,CR406985,Public Conveniences,Building Cleaning Internal,440
http://statistics.data.gov.uk/id/local-authority/12UE,Huntingdonshire District Council,27/04/2011,80623,764.89,Wolters Kluwer (Uk) Ltd,CR416692,Refuse Management & Policy,Books & Publications,250
http://statistics.data.gov.uk/id/local-authority/12UE,Huntingdonshire District Council,27/04/2011,80672,534.00,Edwards & Blake,CR479434,Restaurant,Gen Building Mtce - Responsive,303
http://statistics.data.gov.uk/id/local-authority/12UE,Huntingdonshire District Council,14/04/2011,80509,4668.00,Cipfa Business Limited,CR480088,Revenue Services Mus,Training - Other,136
http://statistics.data.gov.uk/id/local-authority/12UE,Huntingdonshire District Council,20/04/2011,79909,3600.00,Intelligence Led Solutions Limited,CR479499,Revenue Services Mus,Software,206
http://statistics.data.gov.uk/id/local-authority/12UE,Huntingdonshire District Council,14/04/2011,79148,2040.00,Oce Uk Limited,CR409013,Revenue Services Mus,Software,206
http://statistics.data.gov.uk/id/local-authority/12UE,Huntingdonshire District Council,20/04/2011,79446,5712.32,Royal Mail,CR027083,Revenue Services Mus,Postage,231
http://statistics.data.gov.uk/id/local-authority/12UE,Huntingdonshire District Council,27/04/2011,79984,5879.77,Royal Mail,CR027083,Revenue Services Mus,Postage,231
http://statistics.data.gov.uk/id/local-authority/12UE,Huntingdonshire District Council,27/04/2011,79981,1799.98,Royal Mail,CR027083,Revenue Services Mus,Postage,231
http://statistics.data.gov.uk/id/local-authority/12UE,Huntingdonshire District Council,14/04/2011,79151,1314.52,T N T Post Midlands Ltd,CR479965,Revenue Services Mus,Postage,231
http://statistics.data.gov.uk/id/local-authority/12UE,Huntingdonshire District Council,07/04/2011,78416,512.59,T N T Post Midlands Ltd,CR479965,Revenue Services Mus,Postage,231
http://statistics.data.gov.uk/id/local-authority/12UE,Huntingdonshire District Council,07/04/2011,79152,351.36,T N T Post Midlands Ltd,CR479965,Revenue Services Mus,Postage,231
http://statistics.data.gov.uk/id/local-authority/12UE,Huntingdonshire District Council,20/04/2011,79986,251.23,T N T Post Midlands Ltd,CR479965,Revenue Services Mus,Postage,231
http://statistics.data.gov.uk/id/local-authority/12UE,Huntingdonshire District Council,14/04/2011,79116,52500.00,Metropolitan Housing Trust Ltd,CR487206,Social Housing Grant,Grants (Paid Out),800
http://statistics.data.gov.uk/id/local-authority/12UE,Huntingdonshire District Council,27/04/2011,80603,15055.06,Freedom Communications Uk Ltd,CR478774,Software Capital,Other I T Hardware,203
http://statistics.data.gov.uk/id/local-authority/12UE,Huntingdonshire District Council,14/04/2011,79501,2472.00,Ns Systems Limited,CR413493,Software Capital,Equipment Purchases,500
http://statistics.data.gov.uk/id/local-authority/12UE,Huntingdonshire District Council,27/04/2011,79982,4690.00,Edrm Systems Ltd,CR416278,Software Capital,Consultants Other,711
http://statistics.data.gov.uk/id/local-authority/12UE,Huntingdonshire District Council,27/04/2011,80603,2700.00,Freedom Communications Uk Ltd,CR478774,Software Capital,Consultants Other,711
http://statistics.data.gov.uk/id/local-authority/12UE,Huntingdonshire District Council,14/04/2011,80679,2880.00,Northgate Information Solutions Uk Ltd,CR028925,Software Capital,Consultants Other,711
http://statistics.data.gov.uk/id/local-authority/12UE,Huntingdonshire District Council,14/04/2011,80698,6215.24,Power Plate International Ltd,CR480728,Sports Equipment Capital,Equipment Purchases,500
http://statistics.data.gov.uk/id/local-authority/12UE,Huntingdonshire District Council,14/04/2011,80695,5621.24,Power Plate International Ltd,CR480728,Sports Equipment Capital,Equipment Purchases,500
http://statistics.data.gov.uk/id/local-authority/12UE,Huntingdonshire District Council,20/04/2011,80422,1985.40,Staffline Group,CR416827,Street Cleaning,Hired Staff,100
http://statistics.data.gov.uk/id/local-authority/12UE,Huntingdonshire District Council,14/04/2011,79171,1954.44,Staffline Group,CR416827,Street Cleaning,Hired Staff,100
http://statistics.data.gov.uk/id/local-authority/12UE,Huntingdonshire District Council,07/04/2011,79166,1784.26,Staffline Group,CR416827,Street Cleaning,Hired Staff,100
http://statistics.data.gov.uk/id/local-authority/12UE,Huntingdonshire District Council,27/04/2011,80426,1482.30,Staffline Group,CR416827,Street Cleaning,Hired Staff,100
http://statistics.data.gov.uk/id/local-authority/12UE,Huntingdonshire District Council,07/04/2011,79859,360.00,Gilden Training,CR481057,Street Cleaning,Training - Operational,131
http://statistics.data.gov.uk/id/local-authority/12UE,Huntingdonshire District Council,27/04/2011,79963,752.00,Johnston Engineering Ltd,CR029831,Street Cleaning,Vehicle Maintenance,619
http://statistics.data.gov.uk/id/local-authority/12UE,Huntingdonshire District Council,14/04/2011,79567,588.54,Johnston Engineering Ltd,CR029831,Street Cleaning,Vehicle Maintenance,619
http://statistics.data.gov.uk/id/local-authority/12UE,Huntingdonshire District Council,27/04/2011,79876,2816.84,J Breheny Contractors Ltd,CR000314,Street Naming,Signs Erecting & Removal,361
http://statistics.data.gov.uk/id/local-authority/12UE,Huntingdonshire District Council,27/04/2011,79875,2384.11,J Breheny Contractors Ltd,CR000314,Street Naming,Signs Erecting & Removal,361
http://statistics.data.gov.uk/id/local-authority/12UE,Huntingdonshire District Council,27/04/2011,79905,540.00,Evegate Publishing Ltd,CR487247,Tourism,Advertising/Promoting Services,255
http://statistics.data.gov.uk/id/local-authority/12UE,Huntingdonshire District Council,07/04/2011,78418,7560.36,J Breheny Contractors Ltd,CR000314,Transportation Capital,Sitework,359
http://statistics.data.gov.uk/id/local-authority/12UE,Huntingdonshire District Council,14/04/2011,78962,22959.08,John Henry & Sons,CR031967,Transportation Capital,Sitework,359
http://statistics.data.gov.uk/id/local-authority/12UE,Huntingdonshire District Council,14/04/2011,79128,2966.28,Mhb Services,CR417269,Transportation Capital,Sitework,359
http://statistics.data.gov.uk/id/local-authority/12UE,Huntingdonshire District Council,20/04/2011,80683,1238.40,Richard Money Associates,CR401583,Watercourse Capital,Consultants Other,711
http://statistics.data.gov.uk/id/local-authority/12UE,Huntingdonshire District Council,07/04/2011,78601,900.00,Adc East Anglia Limited,CR410308,Watercourses,Sitework,359
